bitfinex/quotes_SOLUSD_20240702
["timestamp","ask_amount","ask_price","bid_price","bid_amount"]
[1719911518567,19.0259,148.46,148.41,28.0678]
[1719911518749,12.29,148.45,148.39,6.0726]
[1719911518949,12.29,148.45,148.4,12.29]
[1719911519451,12.29,148.45,148.39,6.0726]
[1719911519452,12.29,148.44,148.38,100.0]
[1719911519647,12.29,148.44,148.39,32.29]
[1719911519845,8.091955,148.46,148.39,32.29]
[1719911520050,12.29,148.44,148.39,32.29]
[1719911520669,12.29,148.44,148.39,20.0]
[1719911520862,12.29,148.43,148.38,112.29]
[1719911521473,12.29,148.41,148.37,15.7778]
[1719911521655,12.29,148.41,148.36,112.29]
[1719911522357,6.7375,148.43,148.36,112.29]
[1719911522559,12.29,148.41,148.36,112.29]
[1719911524773,12.29,148.41,148.36,100.0]
[1719911527077,12.29,148.42,148.36,100.0]
[1719911528170,12.29,148.4,148.36,112.29]
[1719911529082,12.29,148.41,148.36,112.29]
[1719911529673,8.092955,148.43,148.36,112.29]
[1719911529978,12.29,148.41,148.36,112.29]
[1719911531382,12.29,148.41,148.36,100.0]
[1719911531566,12.29,148.41,148.36,112.29]
[1719911533083,19.0281,148.41,148.36,112.29]
[1719911533267,12.29,148.4,148.36,100.0]
[1719911534773,12.29,148.41,148.36,112.29]
[1719911537487,6.7373,148.43,148.38,100.0]
[1719911537684,12.29,148.42,148.38,100.0]
[1719911538678,6.7373,148.43,148.38,100.0]
[1719911538985,12.29,148.42,148.38,100.0]
[1719911540089,12.29,148.41,148.38,100.0]
[1719911540291,12.29,148.41,148.36,100.0]
[1719911540496,12.29,148.41,148.36,112.29]
[1719911541087,12.29,148.4,148.36,112.29]
[1719911541773,6.7376,148.42,148.36,112.29]
[1719911542092,12.29,148.41,148.36,112.29]
[1719911542492,6.7373,148.43,148.36,152.82]
[1719911542684,12.29,148.42,148.38,100.0]
[1719911544493,8.092455,148.45,148.38,100.0]
[1719911544690,12.29,148.43,148.38,112.29]
[1719911546022,12.29,148.43,148.39,0.43514941]
[1719911546693,12.29,148.43,148.38,112.29]
[1719911547899,12.29,148.42,148.38,100.0]
[1719911552584,12.29,148.42,148.37,18.2949]
[1719911552786,19.0276,148.42,148.37,18.2949]
[1719911552985,12.29,148.41,148.37,6.0049]
[1719911553494,12.29,148.42,148.37,18.2949]
[1719911553691,12.29,148.41,148.37,6.0049]
[1719911554703,12.29,148.41,148.36,112.29]
[1719911556708,12.29,148.41,148.36,100.0]
[1719911556895,12.29,148.41,148.36,112.29]
[1719911558083,12.29,148.41,148.36,100.0]
[1719911558400,12.29,148.38,148.33,33.7885]
[1719911558602,12.29,148.38,148.33,21.4985]
[1719911558787,12.29,148.37,148.33,21.4985]
[1719911559110,12.29,148.37,148.33,33.7885]
[1719911559296,12.29,148.37,148.33,21.4985]
[1719911559498,12.29,148.37,148.33,15.4678]
[1719911559693,12.29,148.36,148.33,15.4678]
[1719911561908,12.29,148.36,148.3,106.1098]
[1719911562111,12.29,148.35,148.3,118.3998]
[1719911563890,6.7402,148.37,148.3,118.3998]
[1719911564084,12.29,148.34,148.3,112.29]
[1719911564290,6.7405,148.36,148.3,12.29]
[1719911564503,12.29,148.35,148.3,12.29]
[1719911565092,6.7405,148.36,148.29,12.29]
[1719911565289,12.29,148.34,148.29,12.29]
[1719911567412,12.29,148.34,148.28,100.0]
[1719911567413,12.29,148.32,148.28,100.0]
[1719911568192,12.29,148.31,148.28,100.0]
[1719911568412,12.29,148.32,148.28,100.0]
[1719911572999,12.29,148.31,148.28,100.0]
[1719911575402,12.29,148.3,148.28,100.0]
[1719911576498,1.355855,148.32,148.28,100.0]
[1719911576818,12.29,148.3,148.28,100.0]
[1719911577198,8.097255,148.34,148.28,100.0]
[1719911577399,12.29,148.32,148.28,100.0]
[1719911578818,12.29,148.33,148.28,112.29]
[1719911579600,6.7414,148.34,148.28,112.29]
[1719911579805,12.29,148.33,148.28,112.29]
[1719911581104,12.29,148.33,148.28,100.0]
[1719911581410,19.0317,148.33,148.28,112.29]
[1719911581808,18.205955,148.37,148.28,112.29]
[1719911582017,12.29,148.33,148.29,12.29]
[1719911582325,12.29,148.33,148.28,100.0]
[1719911582826,12.29,148.33,148.28,112.29]
[1719911584326,12.29,148.31,148.28,100.0]
[1719911585038,12.29,148.3,148.25,112.29]
[1719911585825,12.29,148.3,148.25,100.0]
[1719911586013,12.29,148.3,148.25,112.29]
[1719911587505,12.29,148.3,148.24,28.7244]
[1719911587709,12.29,148.29,148.24,16.4344]
[1719911587942,12.29,148.29,148.25,12.29]
[1719911588540,1.355855,148.31,148.25,12.29]
[1719911588740,12.29,148.29,148.25,12.29]
[1719911589341,12.29,148.29,148.24,28.7244]
[1719911589838,12.29,148.29,148.24,16.4344]
[1719911590014,12.29,148.29,148.24,28.7244]
[1719911590920,12.29,148.29,148.25,100.0]
[1719911593336,12.29,148.29,148.24,28.7244]
[1719911593521,12.29,148.29,148.24,12.29]
[1719911596615,12.29,148.29,148.25,100.0]
[1719911597927,12.29,148.29,148.24,12.29]
[1719911598738,6.744,148.28,148.23,100.0]
[1719911598931,12.29,148.28,148.23,100.0]
[1719911599117,12.29,148.28,148.23,112.29]
[1719911599518,1.355855,148.31,148.23,112.29]
[1719911599737,12.29,148.28,148.23,112.29]
[1719911601139,12.29,148.29,148.24,12.29]
[1719911609429,19.0336,148.29,148.23,200.0]
[1719911609743,12.29,148.29,148.24,12.29]
[1719911610130,1.355855,148.32,148.26,112.29]
[1719911610329,15.1913,148.33,148.28,100.0]
[1719911610542,21.933,148.33,148.28,112.29]
[1719911610731,34.223,148.33,148.28,112.29]
[1719911612271,23.51499395,148.37,148.3,12.29]
[1719911612451,23.51499395,148.37,148.31,12.29]
[1719911612452,12.29,148.36,148.31,12.29]
[1719911612760,12.29,148.36,148.31,12.67965863]
[1719911612941,12.29,148.36,148.32,0.38963248]
[1719911613145,12.29,148.36,148.32,0.78400538]
[1719911613146,19.0303,148.36,148.32,0.78400538]
[1719911614057,19.0303,148.36,148.32,0.87625845]
[1719911614260,12.29,148.36,148.33,0.94446847]
[1719911614739,35.5441,148.37,148.33,0.94446847]
[1719911615061,35.5441,148.37,148.34,0.9444048]
[1719911615233,23.2541,148.37,148.34,0.9444048]
[1719911615441,35.5441,148.37,148.34,0.9444048]
[1719911616034,35.5443,148.37,148.33,0.9444048]
[1719911616434,35.5443,148.37,148.32,112.29]
[1719911617679,23.2543,148.37,148.33,12.29]
[1719911618586,6.7401,148.37,148.33,12.29]
[1719911619094,6.7395,148.38,148.33,12.29]
[1719911619384,19.0295,148.38,148.33,12.29]
[1719911619581,6.7399,148.37,148.33,12.29]
[1719911619796,1.355855,148.39,148.33,12.29]
[1719911619960,6.739,148.39,148.34,12.29]
[1719911620266,19.029,148.39,148.34,12.29]
[1719911621071,6.739,148.39,148.34,112.29]
[1719911621484,6.7394,148.38,148.34,112.29]
[1719911621679,6.7394,148.38,148.34,12.29]
[1719911624175,6.7391,148.39,148.34,12.29]
[1719911624480,19.0291,148.39,148.34,12.29]
[1719911626878,8.095355,148.38,148.34,12.29]
[1719911627083,20.385355,148.38,148.33,12.29]
[1719911627264,19.0299,148.37,148.3,100.0]
[1719911627467,12.29,148.37,148.32,12.29]
[1719911627680,19.0295,148.38,148.33,12.29]
[1719911632975,12.29,148.38,148.33,12.29]
[1719911633174,19.0291,148.39,148.34,12.29]
[1719911633990,12.29,148.38,148.33,12.29]
[1719911634375,19.0295,148.38,148.33,12.29]
[1719911635195,12.29,148.38,148.33,12.29]
[1719911636076,13.645855,148.39,148.33,12.29]
[1719911636978,13.645855,148.39,148.34,12.29]
[1719911637486,12.29,148.39,148.34,112.29]
[1719911638194,8.094655,148.4,148.34,112.29]
[1719911638489,12.29,148.4,148.35,12.29]
[1719911638696,19.0285,148.4,148.35,12.29]
[1719911640405,12.29,148.39,148.34,112.29]
[1719911641382,12.29,148.4,148.35,12.29]
[1719911641583,7.0018584,148.42,148.37,12.29]
[1719911641781,6.2558,148.49,148.4,112.29]
[1719911641988,1.355855,148.52,148.46,100.0]
[1719911642296,1.355855,148.52,148.43,40.53]
[1719911642297,6.2558,148.53,148.48,100.0]
[1719911642500,16.2223,148.54,148.48,112.29]
[1719911642676,16.2223,148.54,148.5,100.0]
[1719911642884,12.29,148.55,148.5,112.29]
[1719911643619,12.29,148.53,148.48,112.29]
[1719911644103,8.088355,148.54,148.45,100.0]
[1719911644104,6.4263,148.56,148.5,100.0]
[1719911644279,13.1577,148.56,148.5,100.0]
[1719911644481,12.29,148.54,148.5,100.0]
[1719911645602,12.29,148.54,148.5,112.29]
[1719911645804,12.29,148.54,148.5,12.29]
[1719911646099,12.29,148.54,148.48,100.0]
[1719911646100,12.29,148.54,148.49,12.29]
[1719911646502,12.29,148.54,148.5,100.0]
[1719911646676,12.29,148.54,148.5,112.29]
[1719911648204,12.29,148.54,148.5,12.29]
[1719911649302,12.29,148.54,148.49,12.29]
[1719911649805,6.4263,148.56,148.5,112.29]
[1719911650004,12.29,148.55,148.5,112.29]
[1719911651128,13.645855,148.54,148.48,100.0]
[1719911651407,12.29,148.53,148.48,112.29]
[1719911651903,19.0234,148.52,148.46,100.0]
[1719911652119,12.29,148.51,148.47,12.29]
[1719911653393,6.7327,148.53,148.47,12.29]
[1719911653612,12.29,148.52,148.47,12.29]
[1719911655020,19.0232,148.52,148.47,12.29]
[1719911655328,19.0235,148.51,148.46,100.0]
[1719911655523,19.0236,148.51,148.46,112.29]
[1719911655723,12.29,148.51,148.46,112.29]
[1719911656308,19.0244,148.5,148.44,100.0]
[1719911656502,19.0244,148.5,148.45,12.29]
[1719911657128,12.29,148.49,148.44,100.0]
[1719911657334,19.0245,148.49,148.44,112.29]
[1719911657538,12.29,148.49,148.44,112.29]
[1719911657727,19.0246,148.49,148.42,100.0]
[1719911658036,12.29,148.48,148.43,12.29]
[1719911658206,12.29,148.48,148.44,112.29]
[1719911660348,20.380755,148.48,148.42,100.0]
[1719911660514,20.380755,148.48,148.43,12.29]
[1719911661031,13.645855,148.48,148.43,12.29]
[1719911661219,20.380755,148.48,148.43,12.29]
[1719911661939,12.29,148.46,148.4,115.8208]
[1719911662160,12.29,148.45,148.4,128.1108]
[1719911662951,12.29,148.46,148.41,12.29]
[1719911665836,12.29,148.46,148.4,115.8208]
[1719911666172,12.29,148.46,148.41,12.29]
[1719911667023,12.29,148.46,148.4,115.8208]
[1719911667217,8.090755,148.48,148.41,12.29]
[1719911667545,12.29,148.46,148.41,12.29]
[1719911668046,1.355855,148.47,148.41,12.29]
[1719911668249,12.29,148.46,148.41,12.29]
[1719911669147,12.29,148.43,148.38,100.0]
[1719911669348,12.29,148.43,148.38,112.29]
[1719911670937,12.29,148.44,148.4,100.0]
[1719911672249,12.29,148.43,148.4,100.0]
[1719911674549,12.29,148.44,148.4,100.0]
[1719911675674,6.7359,148.46,148.4,100.0]
[1719911675962,12.29,148.44,148.4,112.29]
[1719911676135,8.091055,148.48,148.41,12.29]
[1719911676331,12.29,148.47,148.42,12.29]
[1719911677352,19.0254,148.47,148.43,1.34719794]
[1719911677741,6.735,148.48,148.43,101.34719794]
[1719911677943,12.29,148.47,148.43,101.34719794]
[1719911681547,19.0254,148.47,148.43,101.34719794]
[1719911681746,19.0254,148.47,148.43,100.0]
[1719911682050,7.947555,148.5,148.43,100.0]
[1719911682241,12.29,148.47,148.43,100.0]
[1719911683050,12.29,148.46,148.41,115.7243]
[1719911683252,12.29,148.45,148.41,115.7243]
[1719911686942,12.29,148.46,148.41,128.0143]
[1719911687347,6.735,148.48,148.41,128.0143]
[1719911687542,12.29,148.46,148.41,128.0143]
[1719911688683,8.090455,148.49,148.41,128.0143]
[1719911689041,12.29,148.46,148.41,128.0143]
[1719911690264,8.090355,148.49,148.43,100.0]
[1719911690448,12.29,148.47,148.43,100.0]
[1719911691063,8.089855,148.5,148.43,100.0]
[1719911691254,12.29,148.48,148.43,112.29]
[1719911691658,1.355855,148.5,148.43,112.29]
[1719911691855,12.29,148.48,148.43,112.29]
[1719911692255,12.29,148.48,148.44,1.05481315]
[1719911692747,8.089855,148.5,148.44,1.05481315]
[1719911692948,12.29,148.48,148.44,1.05481315]
[1719911695272,8.089855,148.5,148.44,1.05481315]
[1719911695472,12.29,148.48,148.44,1.05481315]
[1719911698079,12.29,148.48,148.43,112.29]
[1719911699856,12.29,148.47,148.43,100.0]
[1719911702358,12.29,148.45,148.41,115.7243]
[1719911702874,12.29,148.44,148.41,115.7243]
[1719911703075,12.29,148.43,148.39,100.0]
[1719911703260,12.29,148.44,148.39,112.29]
[1719911704163,12.29,148.43,148.39,100.0]
[1719911705168,6.7367,148.44,148.38,16.2994]
[1719911705387,1.355855,148.45,148.38,16.2994]
[1719911705388,12.29,148.42,148.38,16.2994]
[1719911706273,12.29,148.42,148.39,100.0]
[1719911707689,12.29,148.42,148.38,16.2994]
[1719911710463,12.29,148.42,148.34,112.29]
[1719911710464,12.29,148.41,148.35,100.0]
[1719911710675,31.9963,148.46,148.35,100.0]
[1719911710676,12.29,148.39,148.35,100.0]
[1719911713687,12.29,148.38,148.35,100.0]
[1719911714686,12.29,148.38,148.34,15.9622]
[1719911715791,1.355855,148.4,148.34,15.9622]
[1719911716091,12.29,148.39,148.34,28.2522]
[1719911719497,12.29,148.38,148.34,28.2522]
[1719911720597,1.355855,148.43,148.35,100.34002645]
[1719911720787,8.093155,148.43,148.36,12.63000353]
[1719911721099,12.29,148.41,148.36,12.63000353]
[1719911721399,12.29,148.4,148.36,12.63000353]
[1719911721771,1.355855,148.42,148.36,12.63000353]
[1719911721974,6.7377,148.42,148.36,12.63000353]
[1719911722302,12.29,148.4,148.36,12.63000353]
[1719911722500,12.29,148.4,148.36,12.29]
[1719911724073,12.29,148.39,148.35,100.0]
[1719911724584,12.29,148.38,148.35,100.0]
[1719911727992,12.29,148.37,148.32,100.0]
[1719911728188,6.7395,148.38,148.32,100.0]
[1719911728389,12.29,148.36,148.32,100.0]
[1719911729100,12.29,148.36,148.32,112.29]
[1719911729503,12.29,148.37,148.32,112.29]
[1719911730189,8.094555,148.4,148.34,112.29]
[1719911730389,12.29,148.39,148.34,112.29]
[1719911731699,16.5573,148.41,148.34,112.29]
[1719911731895,6.7381,148.41,148.35,12.29]
[1719911732100,19.0281,148.41,148.36,12.29]
[1719911732488,19.0281,148.41,148.37,0.76216129]
[1719911734987,12.29,148.4,148.36,100.0]
[1719911735186,19.0286,148.4,148.36,100.0]
[1719911736104,12.29,148.4,148.36,100.0]
[1719911736600,6.7382,148.41,148.36,100.0]
[1719911736905,12.29,148.4,148.36,100.0]
[1719911737401,6.7375,148.43,148.38,100.0]
[1719911737607,19.0275,148.43,148.38,112.29]
[1719911737801,6.7375,148.43,148.38,112.29]
[1719911738101,19.0275,148.43,148.38,112.29]
[1719911738302,6.7376,148.42,148.38,112.29]
[1719911738503,6.7376,148.42,148.38,12.29]
[1719911738701,19.0276,148.42,148.37,12.29]
[1719911739292,12.29,148.42,148.38,100.0]
[1719911741007,8.092655,148.44,148.38,100.0]
[1719911741311,12.29,148.43,148.38,112.29]
[1719911742113,12.29,148.42,148.37,12.29]
[1719911742808,20.383455,148.42,148.36,100.0]
[1719911743010,12.29,148.41,148.37,12.29]
[1719911743193,12.29,148.42,148.37,12.29]
[1719911744488,8.091955,148.46,148.39,100.0]
[1719911744691,12.29,148.44,148.39,112.29]
[1719911746102,1.355855,148.48,148.41,100.0]
[1719911746305,12.29,148.47,148.42,12.29]
[1719911746813,8.090755,148.48,148.42,12.29]
[1719911746814,6.7349,148.48,148.42,12.29]
[1719911746995,12.29,148.47,148.43,100.0]
[1719911749423,12.29,148.46,148.42,12.29]
[1719911750209,12.29,148.46,148.41,112.29]
[1719911750618,19.0258,148.46,148.41,112.29]
[1719911750997,12.29,148.46,148.41,112.29]
[1719911752501,19.0258,148.46,148.41,100.0]
[1719911752702,12.29,148.46,148.41,112.29]
[1719911756016,12.29,148.47,148.42,13.45613141]
[1719911756319,12.29,148.47,148.43,1.16605284]
[1719911759021,12.29,148.47,148.42,12.29]
[1719911759224,12.29,148.46,148.42,12.29]
[1719911760529,12.29,148.46,148.41,100.0]
[1719911760724,13.645855,148.45,148.39,115.32]
[1719911760944,12.29,148.44,148.39,127.61]
[1719911763609,12.29,148.44,148.39,112.29]
[1719911767640,12.29,148.44,148.39,100.0]
[1719911768124,12.29,148.44,148.39,112.29]
[1719911768331,12.29,148.43,148.39,12.29]
[1719911768534,12.29,148.43,148.37,100.0]
[1719911768733,12.29,148.41,148.37,100.0]
[1719911768915,12.29,148.41,148.35,116.1752]
[1719911769107,12.29,148.41,148.36,12.29]
[1719911769913,12.29,148.41,148.37,112.29]
[1719911770222,12.29,148.42,148.37,112.29]
[1719911772420,13.645855,148.43,148.38,12.29]
[1719911773136,15.5701,148.44,148.39,112.29]
[1719911773443,27.8601,148.44,148.4,1.26644251]
[1719911777246,19.0274,148.43,148.39,100.0]
[1719911777953,19.0274,148.43,148.38,12.29]
[1719911778247,12.29,148.43,148.38,12.29]
[1719911782951,12.29,148.43,148.37,100.0]
[1719911783136,12.29,148.43,148.38,12.29]
[1719911783637,12.29,148.43,148.37,100.0]
[1719911783823,12.29,148.43,148.38,12.29]
[1719911784754,13.645855,148.43,148.38,12.29]
[1719911785050,12.29,148.43,148.38,12.29]
[1719911789835,12.29,148.43,148.37,112.29]
[1719911794354,12.29,148.43,148.38,12.29]
[1719911798048,12.29,148.42,148.37,112.29]
[1719911798940,12.29,148.43,148.37,112.29]
[1719911805054,15.5701,148.44,148.39,100.0]
[1719911805256,15.5701,148.44,148.41,12.29]
[1719911805647,15.5701,148.44,148.4,12.29]
[1719911807746,15.5701,148.44,148.39,100.0]
[1719911807950,27.8601,148.44,148.39,12.29]
[1719911809148,29.215955,148.44,148.39,12.29]
[1719911810362,15.5701,148.44,148.4,12.29]
[1719911811063,15.5701,148.44,148.37,200.0]
[1719911811295,13.645855,148.43,148.37,100.0]
[1719911811564,1.355855,148.42,148.38,12.29]
[1719911814372,1.355855,148.42,148.37,100.0]
[1719911814551,1.355855,148.42,148.37,112.29]
[1719911815570,1.355855,148.42,148.37,100.0]
[1719911815758,13.645855,148.42,148.37,12.29]
[1719911816153,12.29,148.41,148.36,12.29]
[1719911816545,1.355855,148.4,148.35,100.0]
[1719911816771,13.645855,148.4,148.35,100.0]
[1719911817362,13.645855,148.4,148.35,112.29]
[1719911818375,12.29,148.4,148.35,112.29]
[1719911819354,12.29,148.4,148.35,12.29]
[1719911821482,12.29,148.37,148.31,100.0]
[1719911821669,12.29,148.36,148.31,100.0]
[1719911821868,12.29,148.36,148.32,12.29]
[1719911822264,12.29,148.37,148.32,12.29]
[1719911824472,12.29,148.35,148.29,200.0]
[1719911824669,12.29,148.35,148.3,12.29]
[1719911824871,1.355855,148.36,148.3,12.29]
[1719911825058,12.29,148.36,148.31,112.29]
[1719911827459,12.29,148.36,148.29,200.0]
[1719911827663,12.29,148.36,148.3,12.29]
[1719911828871,12.29,148.36,148.31,12.29]
[1719911829479,14.340155,148.37,148.31,12.29]
[1719911829664,12.29,148.35,148.31,12.29]
[1719911829864,12.29,148.35,148.3,12.29]
[1719911830671,8.096155,148.36,148.3,12.29]
[1719911830877,1.355855,148.36,148.3,12.29]
[1719911831065,12.29,148.35,148.3,12.29]
[1719911831266,12.29,148.35,148.31,12.29]
[1719911832981,12.29,148.35,148.3,12.29]
[1719911834174,12.29,148.35,148.31,12.29]
[1719911835061,12.29,148.35,148.3,12.29]
[1719911837189,19.0308,148.35,148.29,100.0]
[1719911837356,12.29,148.34,148.29,112.29]
[1719911839683,8.096255,148.36,148.29,112.29]
[1719911839869,12.29,148.34,148.29,112.29]
[1719911840675,13.645855,148.36,148.31,12.29]
[1719911840867,12.29,148.36,148.31,12.29]
[1719911841067,12.29,148.36,148.32,1.34581661]
[1719911841765,19.0304,148.36,148.32,1.34581661]
[1719911841970,19.0304,148.36,148.31,12.29]
[1719911842169,12.29,148.36,148.31,12.29]
[1719911842688,19.0303,148.36,148.31,12.29]
[1719911843063,7.600255,148.37,148.27,100.0]
[1719911843064,1.355855,148.35,148.27,100.0]
[1719911843270,19.0319,148.33,148.27,100.0]
[1719911843475,19.0319,148.33,148.28,12.29]
[1719911844077,19.0319,148.33,148.27,100.0]
[1719911844078,12.29,148.32,148.27,112.29]
[1719911844689,12.29,148.32,148.27,100.0]
[1719911844899,12.29,148.31,148.26,12.29]
[1719911845106,12.29,148.3,148.27,20.0]
[1719911845786,12.29,148.3,148.25,100.0]
[1719911845975,12.29,148.3,148.25,112.29]
[1719911846165,12.29,148.3,148.25,100.0]
[1719911846372,12.29,148.3,148.25,112.29]
[1719911848289,28.6291,148.3,148.25,112.29]
[1719911849293,16.3391,148.3,148.25,112.29]
[1719911849493,16.3391,148.3,148.27,100.0]
[1719911849674,16.3391,148.3,148.26,12.29]
[1719911849875,17.694955,148.3,148.26,12.29]
[1719911850185,16.3391,148.3,148.26,12.29]
[1719911851789,28.6291,148.3,148.26,12.29]
[1719911852991,16.3391,148.3,148.27,100.0]
[1719911853205,18.4865,148.32,148.28,0.7213869]
[1719911854495,6.1965,148.32,148.28,13.0113869]
[1719911855199,6.1965,148.32,148.29,1.34584647]
[1719911855374,6.1965,148.32,148.3,1.34575571]
[1719911856313,6.1965,148.32,148.28,12.29]
[1719911858900,12.9387,148.32,148.28,12.29]
[1719911859110,25.2287,148.32,148.27,112.29]
[1719911859274,19.0328,148.31,148.26,12.29]
[1719911859706,6.7435,148.29,148.23,100.0]
[1719911859882,20.389355,148.29,148.24,32.29]
[1719911860085,19.0335,148.29,148.24,32.29]
[1719911860285,19.0335,148.29,148.24,20.0]
[1719911860482,12.29,148.28,148.24,20.0]
[1719911861405,12.29,148.29,148.24,32.29]
[1719911861990,15.3873,148.3,148.25,100.0]
[1719911862188,15.3873,148.3,148.27,12.29]
[1719911862592,15.3873,148.3,148.27,112.29]
[1719911863277,16.1585,148.34,148.27,200.0]
[1719911863482,16.1585,148.34,148.29,112.29]
[1719911863701,28.4485,148.34,148.29,212.29]
[1719911863899,16.1585,148.34,148.3,12.29]
[1719911866895,36.545655,148.34,148.29,212.29]
[1719911867588,36.545655,148.34,148.29,112.29]
[1719911867899,16.1585,148.34,148.29,112.29]
[1719911868083,16.1585,148.34,148.3,12.29]
[1719911871100,36.545555,148.34,148.29,112.29]
[1719911871897,35.1897,148.34,148.29,112.29]
[1719911872709,28.4485,148.34,148.29,112.29]
[1719911879009,16.1585,148.34,148.29,100.0]
[1719911879215,16.1585,148.34,148.3,12.29]
[1719911880189,16.1585,148.34,148.29,112.29]
[1719911880819,28.4485,148.34,148.29,112.29]
[1719911883116,16.1585,148.34,148.29,112.29]
[1719911884012,1.355855,148.33,148.27,100.0]
[1719911884212,1.355855,148.33,148.28,32.29]
[1719911884213,12.29,148.33,148.28,32.29]
[1719911887799,12.29,148.33,148.29,0.74947961]
[1719911888695,12.29,148.33,148.28,32.29]
[1719911889731,12.29,148.33,148.29,12.29]
[1719911891419,16.1585,148.34,148.29,12.29]
[1719911891623,12.29,148.33,148.29,112.29]
[1719911892120,16.1585,148.34,148.29,112.29]
[1719911892320,16.1585,148.34,148.3,113.19574864]
[1719911893126,16.1585,148.34,148.3,112.29]
[1719911894023,16.1585,148.34,148.31,100.0]
[1719911894232,16.1585,148.34,148.32,1.34589352]
[1719911895811,6.6049,148.36,148.31,112.29]
[1719911896020,28.1274,148.38,148.33,12.29]
[1719911896410,28.1274,148.38,148.34,0.40132568]
[1719911897319,15.8374,148.38,148.34,12.69132568]
[1719911899024,15.8374,148.38,148.34,12.29]
[1719911902121,28.1274,148.38,148.33,112.29]
[1719911902520,28.1274,148.38,148.32,100.0]
[1719911902720,20.385955,148.37,148.31,100.0]
[1719911902922,6.7403,148.36,148.32,12.29]
[1719911903305,19.0299,148.37,148.32,12.29]
[1719911903727,20.385755,148.37,148.32,12.29]
[1719911904230,12.29,148.37,148.32,12.29]
[1719911905827,1.355855,148.36,148.29,100.0]
[1719911906005,12.29,148.35,148.3,32.29]
[1719911906212,19.031,148.35,148.3,20.0]
[1719911906511,19.031,148.35,148.3,12.29]
[1719911907235,12.29,148.35,148.3,12.29]
[1719911907633,8.096355,148.36,148.3,12.29]
[1719911907822,6.7405,148.36,148.3,12.29]
[1719911910233,8.095855,148.37,148.3,12.29]
[1719911910434,1.355855,148.37,148.3,12.29]
[1719911911025,1.355855,148.37,148.31,12.29]
[1719911911536,8.095755,148.37,148.29,100.0]
[1719911911719,8.095755,148.37,148.3,12.29]
[1719911916428,6.1064,148.35,148.27,100.0]